bitfinex-derivatives/quotes_BTCF0:USTF0_20250812
["timestamp","ask_amount","ask_price","bid_price","bid_amount"]
[1755033017160,0.0824,120080.0,120070.0,0.98163104]
[1755033018560,0.0824,120080.0,120070.0,0.5228252]
[1755033018749,0.0824,120080.0,120070.0,0.98163104]
[1755033019261,0.1656789,120080.0,120070.0,0.98163104]
[1755033019566,0.1656789,120080.0,120070.0,0.5228252]
[1755033019754,0.1656789,120080.0,120070.0,0.98163104]
[1755033020762,0.1810589,120080.0,120070.0,0.98163104]
[1755033021157,0.16934224,120080.0,120070.0,0.99139493]
[1755033022664,0.16934224,120080.0,120070.0,0.53258909]
[1755033022864,0.16934224,120080.0,120070.0,0.99139493]
[1755033025865,0.90455577,120100.0,120090.0,0.10155]
[1755033025866,0.83034352,120100.0,120090.0,0.10155]
[1755033026164,0.83034352,120100.0,120090.0,0.99530589]
[1755033026757,0.83034352,120100.0,120090.0,0.99530537]
[1755033027662,0.83034352,120100.0,120090.0,0.99630537]
[1755033028966,0.83034352,120100.0,120090.0,0.99530516]
[1755033029763,0.46954352,120100.0,120090.0,0.99530516]
[1755033029964,0.83034352,120100.0,120090.0,0.99530516]
[1755033030570,0.46954352,120100.0,120090.0,0.99530516]
[1755033030868,0.83034352,120100.0,120090.0,0.99530516]
[1755033031168,0.83034352,120100.0,120090.0,1.00369039]
[1755033035975,0.46954352,120100.0,120090.0,0.99392723]
[1755033036176,0.46954352,120100.0,120090.0,1.00369042]
[1755033037279,0.83034352,120100.0,120090.0,1.00369042]
[1755033037779,0.46954352,120100.0,120090.0,1.00369042]
[1755033038076,0.83034352,120100.0,120090.0,1.00369042]
[1755033038275,0.46954352,120100.0,120090.0,1.00369042]
[1755033039580,0.83034352,120100.0,120090.0,1.00369042]
[1755033039770,0.30299922,120100.0,120090.0,1.00469042]
[1755033041076,0.04168892,120100.0,120090.0,1.82429626]
[1755033041276,0.10146402,120100.0,120090.0,1.82429626]
[1755033041582,0.12404402,120100.0,120090.0,1.82629626]
[1755033041980,0.10146402,120100.0,120090.0,0.56677042]
[1755033042175,0.67636986,120100.0,120090.0,1.37101042]
[1755033042382,0.21756402,120100.0,120090.0,1.37101042]
[1755033042578,0.21756402,120100.0,120090.0,1.01021042]
[1755033045382,0.21756402,120100.0,120090.0,1.00044723]
[1755033045586,0.21756402,120100.0,120090.0,1.01021025]
[1755033046180,0.13429892,120100.0,120090.0,1.37101025]
[1755033046386,0.21756402,120100.0,120090.0,1.37101025]
[1755033046589,0.20348402,120100.0,120090.0,1.37101025]
[1755033046775,0.12021892,120100.0,120090.0,1.37101025]
[1755033046979,0.12021892,120100.0,120090.0,1.82981609]
[1755033047387,0.10202,120100.0,120090.0,1.82981609]
[1755033047591,0.09208,120100.0,120090.0,1.82981609]
[1755033048290,0.05479,120110.0,120100.0,0.0832591]
[1755033048484,0.726665,120120.0,120110.0,0.1843382]
[1755033048689,0.726665,120120.0,120110.0,1.45794706]
[1755033048990,0.712585,120120.0,120110.0,1.45794706]
[1755033049194,0.365865,120120.0,120110.0,1.45794706]
[1755033049882,0.365865,120120.0,120110.0,0.99914122]
[1755033050193,0.249765,120120.0,120110.0,1.45794706]
[1755033050388,0.304555,120120.0,120110.0,1.45794706]
[1755033050890,0.341845,120120.0,120110.0,1.45794706]
[1755033051088,0.342845,120120.0,120110.0,1.45794706]
[1755033051792,0.342845,120120.0,120110.0,1.45894706]
[1755033052383,0.342845,120120.0,120110.0,1.46094706]
[1755033052384,0.341845,120120.0,120110.0,1.46094706]
[1755033054094,0.341845,120120.0,120110.0,1.00214122]
[1755033054295,0.365865,120120.0,120110.0,1.46094706]
[1755033054595,0.365865,120120.0,120110.0,1.00214122]
[1755033054894,0.365865,120120.0,120110.0,1.46094513]
[1755033055393,0.365865,120120.0,120110.0,1.00213929]
[1755033059081,0.2826071,120120.0,120110.0,1.00213929]
[1755033059397,0.1993517,120120.0,120110.0,1.00213929]
[1755033059698,0.1993517,120120.0,120110.0,1.46094513]
[1755033060396,0.1993517,120120.0,120110.0,1.00213929]
[1755033061583,1.76370738,120120.0,120110.0,0.003]
[1755033061793,1.81370738,120120.0,120110.0,0.003]
[1755033062888,1.81370738,120120.0,120110.0,0.002]
[1755033063287,0.8960957,120120.0,120110.0,0.002]
[1755033063591,1.81370738,120120.0,120110.0,0.002]
[1755033063794,0.1317782,120110.0,120100.0,0.0927146]
[1755033064000,1.14320404,120110.0,120100.0,0.1070746]
[1755033064591,1.02320404,120110.0,120100.0,0.1070746]
[1755033064796,1.13320404,120110.0,120100.0,0.1070746]
[1755033065997,1.13420404,120110.0,120100.0,0.1070746]
[1755033067798,1.13420404,120110.0,120100.0,0.0927146]
[1755033068001,0.6653982,120110.0,120100.0,0.0927146]
[1755033068198,1.12420404,120110.0,120100.0,0.0927146]
[1755033068905,1.12420404,120110.0,120100.0,0.00945]
[1755033069402,1.02420404,120110.0,120100.0,0.1375551]
[1755033069601,1.14420404,120110.0,120100.0,0.1375551]
[1755033070300,1.02420404,120110.0,120100.0,0.1375551]
[1755033070498,1.02420404,120110.0,120100.0,0.05429]
[1755033072600,1.02420404,120110.0,120100.0,0.137555]
[1755033073104,1.02420404,120110.0,120100.0,0.05429]
[1755033073300,1.02420404,120110.0,120100.0,0.137555]
[1755033073499,0.5653982,120110.0,120100.0,0.137555]
[1755033073697,1.02420404,120110.0,120100.0,0.137555]
[1755033074100,1.14420404,120110.0,120100.0,0.137555]
[1755033074306,1.02420404,120110.0,120100.0,0.137555]
[1755033074510,0.6753982,120110.0,120100.0,0.03947]
[1755033074804,1.13420404,120110.0,120100.0,0.03947]
[1755033075105,1.13420404,120110.0,120100.0,0.00945]
[1755033076304,0.6753982,120110.0,120100.0,0.00945]
[1755033076505,1.13420404,120110.0,120100.0,0.00945]
[1755033077103,1.13420404,120110.0,120080.0,0.54208454]
[1755033077104,0.203612,120090.0,120080.0,1.1065235]
[1755033077299,0.66241784,120090.0,120080.0,1.1065235]
[1755033077805,0.66241784,120090.0,120080.0,1.1290535]
[1755033079906,0.203612,120090.0,120080.0,1.1290535]
[1755033081699,0.203612,120090.0,120080.0,1.58785934]
[1755033085012,0.203612,120090.0,120080.0,1.1290535]
[1755033085212,0.203612,120090.0,120080.0,1.58785934]
[1755033086507,0.203612,120090.0,120080.0,1.1290535]
[1755033086812,0.203612,120090.0,120080.0,1.58785934]
[1755033087614,0.203612,120090.0,120080.0,1.1290535]
[1755033088905,0.66241784,120090.0,120080.0,1.1290535]
[1755033089815,0.203612,120090.0,120080.0,1.1290535]
[1755033090525,0.66241784,120090.0,120080.0,1.1290535]
[1755033090916,0.203612,120090.0,120080.0,1.1290535]
[1755033092626,0.203612,120090.0,120080.0,1.1300535]
[1755033094228,0.203612,120090.0,120080.0,1.1310535]
[1755033094424,0.083272,120090.0,120080.0,1.58985934]
[1755033094725,0.083272,120090.0,120080.0,1.95065934]
[1755033095127,0.083272,120090.0,120080.0,1.4918535]
[1755033095425,0.083272,120090.0,120080.0,1.95065934]
[1755033096225,0.083272,120090.0,120080.0,1.4918535]
[1755033096417,0.083272,120090.0,120080.0,1.95065934]
[1755033097320,0.083272,120090.0,120080.0,0.6894535]
[1755033097521,0.083272,120090.0,120080.0,1.97133934]
[1755033097717,0.083272,120090.0,120080.0,1.98110252]
[1755033097922,0.3330542,120110.0,120100.0,0.182345]
[1755033098124,0.8113242,120110.0,120100.0,0.99262818]
[1755033098926,1.27013004,120110.0,120100.0,0.99262818]
[1755033099319,0.8123242,120110.0,120100.0,0.99262818]
[1755033099821,1.39113004,120110.0,120100.0,0.99262818]
[1755033100028,1.27113004,120110.0,120100.0,0.99262818]
[1755033100229,1.39113004,120110.0,120100.0,0.99262818]
[1755033100426,1.27113004,120110.0,120100.0,0.99262818]
[1755033100831,1.27013004,120110.0,120100.0,0.99262786]
[1755033101129,1.38013004,120110.0,120100.0,0.99262786]
[1755033101330,1.27013004,120110.0,120100.0,0.99262786]
[1755033101530,1.27113004,120110.0,120100.0,0.99262786]
[1755033101932,0.9423242,120110.0,120100.0,0.99262786]
[1755033102127,0.8123242,120110.0,120100.0,0.99262786]
[1755033102324,1.39113004,120110.0,120100.0,0.99262786]
[1755033102524,0.8123242,120110.0,120100.0,0.99262786]
[1755033102732,1.27113004,120110.0,120100.0,0.99262786]
[1755033103524,1.40113004,120110.0,120100.0,0.99262786]
[1755033103727,1.40113004,120110.0,120100.0,0.96951786]
[1755033103933,1.40113004,120110.0,120100.0,0.93213788]
[1755033104125,1.40113004,120110.0,120100.0,0.94695788]
[1755033104633,1.40113004,120110.0,120100.0,0.86369288]
[1755033104833,1.40113004,120110.0,120100.0,0.04835288]
[1755033105033,1.40113004,120110.0,120100.0,0.01939288]
[1755033105636,1.40113004,120110.0,120100.0,0.03331288]
[1755033106237,1.40113004,120110.0,120100.0,0.06317288]
[1755033106838,2.20153004,120110.0,120100.0,0.06317288]
[1755033108037,2.20153004,120110.0,120100.0,0.05341]
[1755033108434,2.20153004,120110.0,120100.0,0.03859]
[1755033108731,0.200735,120100.0,120090.0,0.82503]
[1755033109036,0.561535,120100.0,120090.0,0.94680525]
[1755033109234,1.02034084,120100.0,120090.0,0.94680525]
[1755033110439,1.13034084,120100.0,120090.0,0.86353342]
[1755033110834,0.76954084,120100.0,120090.0,0.94680532]
[1755033111043,1.13034084,120100.0,120090.0,0.94680541]
[1755033111536,1.13034084,120100.0,120090.0,0.86353351]
[1755033112640,1.13034084,120100.0,120090.0,0.94680541]
[1755033112839,1.13034084,120100.0,120090.0,0.86353351]
[1755033113436,1.13034084,120100.0,120090.0,0.81975351]
[1755033113640,1.13034084,120100.0,120090.0,0.84871351]
[1755033114442,1.13034084,120100.0,120090.0,0.86353351]
[1755033114636,1.13034084,120100.0,120070.0,0.03859]
[1755033114637,0.0832795,120080.0,120070.0,0.03859]
[1755033114842,0.75955711,120080.0,120070.0,0.89932]
[1755033115040,1.01035711,120080.0,120070.0,0.89932]
[1755033115434,1.01035711,120080.0,120070.0,0.99076493]
[1755033115841,1.01035711,120080.0,120070.0,0.99176493]
[1755033116842,0.55155127,120080.0,120070.0,0.99176493]
[1755033117041,1.01035711,120080.0,120070.0,0.99176493]
[1755033117241,1.01035711,120080.0,120070.0,0.99276493]
[1755033118143,0.55155127,120080.0,120070.0,0.99276493]
[1755033119338,0.13469127,120080.0,120070.0,0.99276493]
[1755033119539,0.07328127,120080.0,120070.0,1.45157077]
[1755033119845,0.73605095,120090.0,120080.0,0.1858396]
[1755033120037,0.80613095,120090.0,120080.0,0.1858396]
[1755033120235,0.81543095,120090.0,120080.0,0.1858396]
[1755033120545,1.28909679,120090.0,120080.0,0.1858396]
[1755033120939,0.83029095,120090.0,120080.0,0.1858396]
[1755033121140,1.28909679,120090.0,120080.0,0.1858396]
[1755033124642,0.83029095,120090.0,120080.0,0.1858396]
[1755033124949,1.28909679,120090.0,120080.0,0.1858396]
[1755033125146,0.83029095,120090.0,120080.0,0.1858396]
[1755033125349,1.27068424,120090.0,120080.0,0.1858396]
[1755033130154,1.27068424,120090.0,120080.0,0.19560401]
[1755033130756,1.27068424,120090.0,120080.0,0.17068401]
[1755033131160,1.27068424,120090.0,120080.0,0.14783401]
[1755033136265,1.27068424,120090.0,120080.0,0.1380696]
[1755033138263,1.27068424,120090.0,120080.0,0.14783432]
[1755033138850,1.27068424,120090.0,120080.0,0.13301432]
[1755033139362,1.27068424,120090.0,120080.0,0.1232496]
[1755033140760,1.27068424,120090.0,120080.0,0.1330143]
[1755033141258,1.40068424,120090.0,120080.0,0.0930443]
[1755033141965,1.27068424,120090.0,120080.0,0.0930443]
[1755033142654,1.84211778,120090.0,120080.0,0.0930443]
[1755033142854,1.84211778,120090.0,120080.0,0.09304433]
[1755033143455,1.94211778,120090.0,120080.0,0.09304433]
[1755033143664,1.84211778,120090.0,120080.0,0.09304423]
[1755033144557,1.8608665,120090.0,120080.0,0.09304423]
[1755033147166,1.9908665,120090.0,120080.0,0.0832796]
[1755033147380,0.2845213,120090.0,120080.0,0.71072398]
[1755033147671,0.80064099,120090.0,120080.0,0.71072398]
[1755033147865,1.16144099,120090.0,120080.0,0.19560429]
[1755033148063,1.16144099,120090.0,120080.0,0.71072398]
[1755033148366,1.16044099,120090.0,120080.0,0.71072398]
[1755033148569,0.79964099,120090.0,120080.0,0.19560429]
[1755033148768,0.79964099,120090.0,120080.0,0.71072398]
[1755033149464,1.16044099,120090.0,120080.0,0.71072398]
[1755033149865,1.16044099,120090.0,120080.0,0.71072366]
[1755033150070,0.6453213,120090.0,120080.0,0.71072365]
[1755033150370,1.16044099,120090.0,120080.0,0.71072365]
[1755033150674,1.16044099,120090.0,120080.0,0.68580365]
[1755033150874,1.16044099,120090.0,120080.0,0.17068396]
[1755033151767,1.16044099,120090.0,120080.0,0.14783396]
[1755033151967,1.67556068,120090.0,120080.0,0.14783396]
[1755033153275,1.67556068,120090.0,120080.0,0.10297396]
[1755033153867,0.6453213,120090.0,120080.0,0.10297396]
[1755033154065,0.4790024,120110.0,120090.0,0.0832667]
[1755033154267,1.05117209,120110.0,120100.0,1.42607539]
[1755033154469,1.05117209,120110.0,120100.0,0.9820057]
[1755033154766,1.05117209,120110.0,120100.0,1.49712539]
[1755033154966,1.09901209,120110.0,120100.0,1.49712539]
[1755033155275,0.5838924,120110.0,120100.0,1.49712539]
[1755033155475,1.09901209,120110.0,120100.0,1.49712539]
[1755033156470,1.09901209,120110.0,120100.0,0.9820057]
[1755033156675,0.5838924,120110.0,120100.0,0.9820057]
[1755033156877,0.5848924,120110.0,120100.0,0.9820057]
[1755033157569,0.5838924,120110.0,120100.0,0.9820057]
[1755033157975,1.04153103,120110.0,120100.0,0.9820057]
[1755033158174,1.04153103,120110.0,120100.0,0.99054207]
[1755033158969,1.04153103,120110.0,120100.0,0.9820057]
[1755033159372,1.04153103,120110.0,120100.0,0.0832657]
[1755033159577,0.2030954,120100.0,120090.0,1.0730675]
[1755033159773,0.66073403,120100.0,120090.0,1.08283039]
[1755033159968,0.66073403,120100.0,120090.0,1.0967804]
[1755033160169,0.66073403,120100.0,120090.0,1.1116004]
[1755033160678,0.66073403,120100.0,120090.0,1.11986881]
[1755033161778,0.66073403,120100.0,120090.0,1.11160042]
[1755033162976,1.02153403,120100.0,120090.0,1.11160042]
[1755033163172,1.02153403,120100.0,120090.0,1.1018375]
[1755033163678,1.02153403,120100.0,120090.0,1.1267675]
[1755033163976,0.5638954,120100.0,120090.0,1.13653061]
[1755033164176,0.5638954,120100.0,120090.0,1.1267675]
[1755033164678,1.02153403,120100.0,120090.0,1.1267675]
[1755033165078,1.02153403,120100.0,120090.0,1.13508516]
[1755033165775,0.66073403,120100.0,120090.0,1.14484824]
[1755033166179,0.2030954,120100.0,120090.0,1.14484824]
[1755033166375,0.66073403,120100.0,120090.0,1.14484824]
[1755033166976,1.02153403,120100.0,120090.0,1.14484824]
[1755033167177,1.02153403,120100.0,120090.0,1.13653058]
[1755033167771,1.02153403,120100.0,120090.0,1.14489116]
[1755033168580,0.5638954,120100.0,120090.0,1.14489116]
[1755033168781,1.02153403,120100.0,120090.0,1.14489116]
[1755033168979,0.48063,120100.0,120090.0,1.60252979]
[1755033169382,0.48063,120100.0,120090.0,1.60252978]
[1755033169676,0.03955,120100.0,120090.0,1.60252978]
[1755033169978,1.05222444,120120.0,120110.0,0.1581485]
[1755033169979,0.74918411,120120.0,120110.0,0.1581485]
[1755033170174,1.24682274,120120.0,120110.0,0.9347285]
[1755033172673,0.4008,120120.0,120110.0,1.43883713]
[1755033172878,0.1895181,120140.0,120130.0,0.1293648]
[1755033173184,0.62925679,120150.0,120140.0,0.1830578]
[1755033173185,0.7303359,120150.0,120140.0,0.1830578]
[1755033173372,0.7703359,120150.0,120140.0,0.1830578]
[1755033173577,1.22797453,120150.0,120140.0,0.1830578]
[1755033173777,1.22797453,120150.0,120140.0,0.19281732]
[1755033173976,1.22797453,120150.0,120140.0,0.16634895]
[1755033174976,1.22797453,120150.0,120140.0,0.17610843]
[1755033175382,0.7703359,120150.0,120140.0,0.16634895]
[1755033175575,1.22797453,120150.0,120140.0,0.20103837]
[1755033176485,1.22797453,120150.0,120140.0,0.20203837]
[1755033176885,1.22797453,120150.0,120140.0,0.20203856]
[1755033177184,1.22797453,120150.0,120140.0,0.20303856]
[1755033177377,1.22797453,120150.0,120140.0,0.9828178]
[1755033177787,1.22797453,120150.0,120140.0,0.99137034]
[1755033178285,1.22797453,120150.0,120140.0,0.9430678]
[1755033178786,1.22797453,120150.0,120140.0,0.9578878]
[1755033179583,1.22797453,120150.0,120140.0,0.9558878]
[1755033180281,1.22797453,120150.0,120140.0,0.99027753]
[1755033180784,1.22797453,120150.0,120130.0,0.1075037]
[1755033180785,1.7043177,120140.0,120130.0,0.1075037]
[1755033180984,2.65275633,120140.0,120130.0,0.80719991]
[1755033181190,2.65275633,120140.0,120130.0,0.00975991]
[1755033181489,0.2043246,120130.0,120120.0,1.02506024]
[1755033181692,1.02276323,120130.0,120120.0,1.03482101]
[1755033181991,1.02276323,120130.0,120120.0,1.05945101]
[1755033182183,1.02276323,120130.0,120120.0,1.04969024]
[1755033182383,1.02276323,120130.0,120120.0,1.05945101]
[1755033182983,0.6751246,120130.0,120120.0,0.00976077]
[1755033183181,0.5651246,120130.0,120120.0,0.09301227]
[1755033183381,1.14276323,120130.0,120120.0,0.09601227]
[1755033183685,1.14276323,120130.0,120120.0,0.11871227]
[1755033183888,1.02276323,120130.0,120120.0,0.05066077]
[1755033184089,1.02276323,120130.0,120120.0,0.06548077]
[1755033184283,1.02276323,120130.0,120120.0,0.06648077]
[1755033184588,1.02276323,120130.0,120120.0,0.09111077]
[1755033184990,1.02276323,120130.0,120120.0,0.09011077]
[1755033185491,1.02276323,120130.0,120120.0,0.08811077]
[1755033185687,1.02276323,120130.0,120120.0,0.07835]
[1755033186087,1.02276323,120130.0,120120.0,0.07735]
[1755033186393,1.02276323,120130.0,120120.0,0.06248112]
[1755033186696,1.02276323,120130.0,120120.0,0.05272]
[1755033187493,1.02276323,120130.0,120120.0,0.06248112]
[1755033188790,1.13276323,120130.0,120120.0,0.00976112]
[1755033188994,0.0832515,120120.0,120110.0,0.79712]
[1755033189196,1.04157615,120120.0,120110.0,0.81594151]
[1755033189898,1.17157615,120120.0,120110.0,0.81590151]
[1755033190402,1.04157615,120120.0,120110.0,0.81690151]
[1755033190793,1.04157615,120120.0,120110.0,0.83054151]
[1755033190993,1.04157615,120120.0,120110.0,0.82954151]
[1755033191396,1.15157615,120120.0,120110.0,0.84474151]
[1755033191795,1.04157615,120120.0,120110.0,0.84474151]
[1755033192197,1.04157615,120120.0,120110.0,0.85956151]
[1755033192496,1.17157615,120120.0,120110.0,0.85956151]
[1755033192693,1.04157615,120120.0,120110.0,0.85956151]
[1755033193101,1.15157615,120120.0,120110.0,0.85956151]
[1755033193299,1.04157615,120120.0,120110.0,0.85956151]
[1755033194900,1.04157615,120120.0,120110.0,0.83110151]
[1755033195801,1.04157615,120120.0,120110.0,0.84474151]
[1755033196105,1.04157615,120120.0,120110.0,0.85956151]
[1755033196401,1.04157615,120120.0,120110.0,0.85956205]
[1755033196704,1.04157615,120120.0,120110.0,0.85956208]
[1755033197503,1.04157615,120120.0,120110.0,0.90714208]
[1755033198210,1.04157615,120120.0,120110.0,0.90682208]
[1755033199202,1.04157615,120120.0,120110.0,0.89706]
[1755033199403,1.04157615,120120.0,120110.0,0.90682216]
[1755033200501,1.04157615,120120.0,120110.0,0.07061216]
[1755033200708,1.15157615,120120.0,120110.0,0.80640216]
[1755033201107,1.04157615,120120.0,120110.0,0.82910216]
[1755033201307,1.04157615,120120.0,120110.0,0.85912216]
[1755033201996,1.17157615,120120.0,120110.0,0.85912216]
[1755033202197,1.17257615,120120.0,120110.0,0.85912216]
[1755033202600,1.04257615,120120.0,120110.0,0.85912216]
[1755033203002,1.16257615,120120.0,120110.0,0.84936]
[1755033203207,0.189785,120100.0,120090.0,0.1003]
[1755033203408,0.565145,120100.0,120090.0,0.90658317]
[1755033203706,0.565145,120100.0,120090.0,0.91504128]
[1755033203906,1.02278363,120100.0,120090.0,0.91504128]
[1755033204808,1.02278363,120100.0,120090.0,0.91604128]
[1755033205000,1.02278363,120100.0,120090.0,0.99931318]
[1755033205205,1.02278363,120100.0,120090.0,1.00031318]
[1755033205620,1.02278363,120100.0,120090.0,1.00031329]
[1755033205821,1.02278363,120100.0,120090.0,0.90858328]
[1755033206313,1.02278363,120100.0,120090.0,0.99185518]
[1755033207012,1.02278363,120100.0,120090.0,0.90858328]
[1755033207608,1.02278363,120100.0,120090.0,0.02082328]
[1755033207816,1.02278363,120100.0,120090.0,0.80812328]
[1755033208121,1.49358363,120100.0,120090.0,0.83626]
[1755033208517,1.38358363,120100.0,120090.0,0.83626]
[1755033209216,1.50358363,120100.0,120090.0,0.83626]
[1755033209716,1.38358363,120100.0,120090.0,0.83626]
[1755033209917,1.38358363,120100.0,120090.0,0.01106]
[1755033209918,1.49358363,120100.0,120090.0,0.01106]
[1755033210122,1.49358363,120100.0,120090.0,0.80738]
[1755033210617,1.50358363,120100.0,120090.0,0.01106]
[1755033210822,1.38358363,120100.0,120090.0,0.002]
[1755033211427,1.49358363,120100.0,120090.0,0.002]
[1755033212521,2.28982363,120100.0,120090.0,0.002]
[1755033218928,2.30866711,120100.0,120090.0,0.002]
[1755033220413,2.30866711,120100.0,120090.0,0.001]
[1755033220615,2.30866711,120100.0,120070.0,2.09241403]
[1755033220616,0.083279,120080.0,120070.0,2.00912833]
[1755033220816,0.99942763,120080.0,120070.0,2.01889311]
[1755033221042,1.02201763,120080.0,120070.0,0.99889901]
[1755033221726,1.02201763,120080.0,120070.0,0.99046068]
[1755033221920,1.02201763,120080.0,120070.0,0.99146068]
[1755033222432,1.02201763,120080.0,120070.0,0.90917478]
[1755033223420,0.564379,120080.0,120070.0,0.90917478]
[1755033223721,1.02201763,120080.0,120070.0,0.90917478]
[1755033224232,1.02201763,120080.0,120070.0,0.89941]
[1755033224427,1.02201763,120080.0,120070.0,0.90917496]
[1755033224926,1.02201763,120080.0,120070.0,0.90917497]
[1755033225132,1.02201763,120080.0,120070.0,0.99246087]
[1755033225331,0.3721778,120090.0,120080.0,0.1847289]
[1755033225627,0.7997978,120090.0,120080.0,0.19449387]
[1755033225832,1.27184643,120090.0,120080.0,0.11121497]
[1755033226130,1.27184643,120090.0,120080.0,0.08637497]
[1755033226324,1.27184643,120090.0,120080.0,0.19449387]
[1755033227223,0.8142078,120090.0,120080.0,0.19449387]
[1755033227423,1.27184643,120090.0,120080.0,0.1847289]
[1755033227624,1.27184643,120090.0,120080.0,0.19449344]
[1755033230227,1.27184643,120090.0,120080.0,0.11121454]
[1755033230730,1.27184643,120090.0,120080.0,0.11121449]
[1755033231425,1.27184643,120090.0,120080.0,0.08637449]
[1755033235420,1.27184643,120090.0,120080.0,0.06316449]
[1755033236936,2.18684643,120090.0,120080.0,0.00976449]
[1755033237433,0.1891896,120050.0,120040.0,0.02483]
[1755033237633,1.14203823,120050.0,120040.0,0.02483]
[1755033237823,0.2036065,120040.0,120030.0,0.0534]
[1755033238023,0.2036065,120040.0,120030.0,0.19298886]
[1755033238223,0.66124513,120040.0,120030.0,0.1847634]
[1755033238424,1.02204513,120040.0,120030.0,0.1847634]
[1755033238831,0.66124513,120040.0,120030.0,0.19296308]
[1755033239337,0.66124513,120040.0,120030.0,0.1847634]
[1755033240326,0.66124513,120040.0,120030.0,0.1957634]
[1755033240925,0.66124513,120040.0,120030.0,0.20427961]
[1755033241630,0.66124513,120040.0,120030.0,0.99907961]
[1755033241841,0.1891965,120040.0,120030.0,0.99907961]
[1755033242535,0.10589,120040.0,120030.0,1.35987961]
[1755033242733,0.3559708,120050.0,120040.0,0.08442]
[1755033242933,0.3707408,120050.0,120040.0,0.1839065]
[1755033243133,0.1450995,120050.0,120040.0,1.00234513]
[1755033243335,0.0832995,120050.0,120040.0,0.5447065]
[1755033243541,0.1796395,120050.0,120040.0,0.5447065]
[1755033243936,0.1796395,120050.0,120040.0,0.1929065]
[1755033244136,0.1796395,120050.0,120040.0,0.5537065]
[1755033244436,1.24409236,120060.0,120050.0,0.1368695]
[1755033244629,1.24409236,120060.0,120050.0,0.9786195]
[1755033244829,0.11464463,120060.0,120050.0,0.9786195]
[1755033245035,0.19793723,120060.0,120050.0,0.9786195]
[1755033246041,0.19793723,120060.0,120050.0,0.9826195]
[1755033246341,0.16339723,120060.0,120050.0,0.9856195]
[1755033246540,0.01830463,120060.0,120050.0,0.9856195]
[1755033246741,0.01830463,120060.0,120050.0,1.80405813]
[1755033247540,0.01830463,120060.0,120050.0,1.97065013]
[1755033247741,0.01830463,120060.0,120050.0,1.80405813]
[1755033247935,0.01830463,120060.0,120050.0,1.97065013]
[1755033248934,0.01830463,120060.0,120050.0,1.5130115]
[1755033249130,0.01830463,120060.0,120050.0,1.97065013]
[1755033249843,0.01830463,120060.0,120050.0,1.98041502]
[1755033250235,0.0832857,120070.0,120050.0,2.20121892]
[1755033250430,0.1426757,120070.0,120060.0,0.5446926]
[1755033250640,0.1426757,120070.0,120060.0,0.55445749]
[1755033252241,0.1645457,120070.0,120060.0,0.55445749]
[1755033252742,0.1645457,120070.0,120060.0,0.55745749]
[1755033253137,0.1645457,120070.0,120060.0,0.55945749]
[1755033253734,0.1300057,120070.0,120060.0,0.55945749]
[1755033253940,0.0832791,120080.0,120070.0,0.1838856]
[1755033254140,0.2041091,120080.0,120070.0,0.98785049]
[1755033254445,0.64697773,120080.0,120070.0,0.98785049]
[1755033254945,0.66174773,120080.0,120070.0,0.98785049]
[1755033255346,0.66174773,120080.0,120070.0,0.98885049]
[1755033256053,0.2041091,120080.0,120070.0,0.98985049]
[1755033256245,0.66174773,120080.0,120070.0,0.98985049]
[1755033257941,0.66174773,120080.0,120070.0,0.9800856]
[1755033258142,0.66174773,120080.0,120070.0,0.98985018]
[1755033260146,0.66174773,120080.0,120070.0,0.9800856]
[1755033260548,0.66174773,120080.0,120070.0,0.98985019]
[1755033263147,0.2041091,120080.0,120070.0,0.98985019]
[1755033263349,0.66174773,120080.0,120070.0,0.98985019]
[1755033263543,1.02254773,120080.0,120070.0,0.98985019]
[1755033263743,0.2041091,120080.0,120070.0,0.98985019]
[1755033263949,0.66174773,120080.0,120070.0,0.98985019]
[1755033267543,0.66174773,120080.0,120070.0,0.9898501]
[1755033270550,1.02254773,120080.0,120070.0,0.9898501]
[1755033270750,0.66174773,120080.0,120070.0,0.9898501]
[1755033270946,1.02254773,120080.0,120070.0,0.9511001]
[1755033271145,1.02254773,120080.0,120070.0,0.0117645]
[1755033271146,1.59018636,120080.0,120070.0,0.0117645]
[1755033271545,1.59018636,120080.0,120070.0,0.0950501]
[1755033271956,1.48018636,120080.0,120070.0,0.0950501]
[1755033272745,1.48118636,120080.0,120070.0,0.0940501]
[1755033273146,1.48018636,120080.0,120070.0,0.0940501]
[1755033273352,1.02254773,120080.0,120070.0,0.0940501]
[1755033274452,1.02254773,120080.0,120070.0,0.0930501]
[1755033274960,1.48018636,120080.0,120070.0,0.0930501]
[1755033275963,1.02254773,120080.0,120070.0,0.0930501]
[1755033276759,1.02254773,120080.0,120070.0,0.09305075]
[1755033277664,1.48018636,120080.0,120070.0,0.09305075]
[1755033278057,1.02254773,120080.0,120070.0,0.09305075]
[1755033278466,0.10606,120080.0,120070.0,0.19451075]
[1755033278657,0.1893385,120080.0,120070.0,0.19451075]
[1755033278858,0.66151713,120080.0,120070.0,0.19451075]
[1755033279058,0.66151713,120080.0,120070.0,0.19451017]
[1755033279867,0.66151713,120080.0,120070.0,0.1847456]
[1755033280766,0.66151713,120080.0,120070.0,0.1857456]
[1755033280967,0.2038785,120080.0,120070.0,0.1857456]
[1755033281369,0.66151713,120080.0,120070.0,0.1867456]
[1755033282569,0.2038785,120080.0,120070.0,0.1867456]
[1755033282761,0.66151713,120080.0,120070.0,0.1867456]
[1755033283866,0.64697713,120080.0,120070.0,0.1867456]
[1755033284069,0.2038785,120080.0,120070.0,0.1867456]
[1755033286369,0.1206,120080.0,120070.0,0.1867456]
[1755033289675,0.2038785,120080.0,120070.0,0.1867456]
[1755033290768,0.66151713,120080.0,120070.0,0.1867456]
[1755033294383,0.2038785,120080.0,120070.0,0.1867456]
[1755033294686,0.66151713,120080.0,120070.0,0.1867456]
[1755033295584,0.2038785,120080.0,120070.0,0.1867456]
[1755033295785,0.66151713,120080.0,120070.0,0.1867456]
[1755033296988,0.2038785,120080.0,120070.0,0.1867456]
[1755033297380,0.66151713,120080.0,120070.0,0.1867456]
[1755033297888,0.66151713,120080.0,120070.0,0.1623456]
[1755033298187,0.66151713,120080.0,120070.0,0.0852856]
[1755033298386,0.2038785,120080.0,120070.0,0.0852856]
[1755033298576,0.66151713,120080.0,120070.0,0.0852856]
[1755033300485,0.78151713,120080.0,120070.0,0.0852856]
[1755033300685,1.23915576,120080.0,120070.0,0.0852856]
[1755033300884,1.59995576,120080.0,120070.0,0.0852856]
[1755033301385,1.15231713,120080.0,120070.0,0.0852856]
[1755033301586,1.02231713,120080.0,120070.0,0.0852856]
[1755033301889,1.60995576,120080.0,120070.0,0.0852856]
[1755033302291,1.15231713,120080.0,120070.0,0.0852856]
[1755033302489,1.02221713,120080.0,120070.0,0.0852856]
[1755033303188,0.1205,120080.0,120070.0,0.0852856]
[1755033303390,0.2037785,120080.0,120070.0,1.00546423]
[1755033303588,0.2037785,120080.0,120070.0,0.64466423]
[1755033303990,0.2037785,120080.0,120070.0,0.1870256]
[1755033304492,0.1205,120080.0,120070.0,0.1870256]